fUST/lending_fUST_20250319
["ID","MTS","AMOUNT","RATE_DAILY","PERIOD"]
[356380342,1742350232193,-500.0,0.0001105,2]
[356380343,1742350232203,-500.0,0.0001105,2]
[356380344,1742350232213,-500.0,0.0001105,2]
[356380345,1742350232223,-500.0,0.0001105,2]
[356380346,1742350232233,-500.0,0.00011067,2]
[356380347,1742350232242,-153.054,0.00011082,2]
[356380348,1742350232252,-249.539,0.00011082,2]
[356380349,1742350232262,-228.93372822,0.00011082,2]
[356380350,1742350232274,-6.56627178,0.00011082,2]
[356380351,1742350232284,-254.678,0.00011082,2]
[356380352,1742350232294,-186.0,0.00011082,2]
[356380353,1742350232304,-281.209,0.00011082,2]
[356380354,1742350232314,-500.0,0.000111,2]
[356380355,1742350232324,-500.0,0.000111,2]
[356380356,1742350232339,-156.11923861,0.00011228,2]
[356380357,1742350232349,-500.0,0.00011899,2]
[356380358,1742350232359,-500.0,0.00011899,2]
[356380359,1742350232370,-500.0,0.00011899,2]
[356380360,1742350232380,-500.0,0.00011899,2]
[356380361,1742350232390,-538.8314708,0.00011899,2]
[356380362,1742350232400,-9288.2308276,0.000119,2]
[356380363,1742350232428,-1357.50154515,0.000119,2]
[356380364,1742350232438,-420.0,0.00011924,2]
[356380365,1742350232448,-316.0,0.000126,2]
[356380366,1742350232458,-587.0,0.00013105,2]
[356380367,1742350232470,-694.8216468,0.00013288,2]
[356380368,1742350232480,-3763.82409854,0.00013499,2]
[356380369,1742350232490,-483.36003256,0.00013598,2]
[356380370,1742350232500,-19604.99651382,0.00013599,2]
[356380382,1742350237748,-634.90314799,0.00013599,2]
[356380383,1742350237760,-18503.92810378,0.00013599,2]
[356380384,1742350237771,-7965.06971346,0.00013599,2]
[356380385,1742350237802,-11557.3599256,0.00013599,2]
[356380386,1742350237814,-4410.39522008,0.00013599,2]
[356380387,1742350237825,-3782.50501255,0.00013599,2]
[356380388,1742350237836,-6970.87960091,0.00013599,2]
[356380389,1742350237855,-22092.37448447,0.00013599,2]
[356380455,1742350242935,-282.09238564,0.00011081,2]
[356380456,1742350242945,-399.0,0.0001162,2]
[356380457,1742350242955,-5262.60462881,0.00013599,2]
[356380485,1742350246318,-851.62567513,0.00013599,2]
[356380513,1742351146109,-198.61230363,0.00010808,2]
[356380514,1742351146131,-1568.11556199,0.00010896,2]
[356380517,1742351214164,-177.10636203,0.00010883,2]
[356380654,1742351443093,-1187.20370374,0.00010758,2]
[356380655,1742351443103,-4053.05732683,0.00010832,2]
[356380666,1742351446384,-5086.25768197,0.00010832,2]
[356380667,1742351446439,-3319.62319266,0.00010832,2]
[356380668,1742351446450,-833.92477148,0.00010832,2]
[356380669,1742351446460,-160.0,0.00010832,2]
[356380670,1742351446470,-11.45203586,0.00010832,2]
[356380671,1742351640357,10000.0,0.00013,30]
[356380674,1742352353135,-196.76751656,0.00010546,2]
[356380675,1742352353156,-160.0,0.00010653,2]
[356380676,1742352353178,-417.89091067,0.00010653,2]
[356380677,1742352353200,-160.0,0.00010673,2]
[356380678,1742352353221,-258.93988939,0.00010777,2]
[356380679,1742352413840,167.0,0.00014,30]
[356380680,1742352426083,-300.0,0.00010765,2]
[356380681,1742352426106,-602.59465325,0.00010766,2]
[356380710,1742352632272,-300.0,0.00010733,2]
[356380711,1742352632283,-160.0,0.00010734,2]
[356380712,1742352632292,-417.89091067,0.00010734,2]
[356380713,1742352632303,-3255.79862966,0.00010734,2]
[356380714,1742352632313,-833.92477148,0.00010734,2]
[356380715,1742352632323,-160.0,0.00010734,2]
[356380716,1742352632333,-160.0,0.00010745,2]
[356380717,1742352632343,-600.0,0.00010815,2]
[356380718,1742352632353,-7028.3579682,0.00010822,2]
[356380719,1742352632363,-622.2,0.0001087,2]
[356380720,1742352632373,-645.2214,0.00010925,2]
[356380721,1742352632382,-212.780451,0.00010959,2]
[356380722,1742352632392,-669.0945918,0.0001098,2]
[356380723,1742352632402,-880.79607379,0.00011035,2]
[356380724,1742352632412,-3513.6439567,0.00011083,2]
[356380725,1742352632422,-802.15780449,0.00011128,2]
[356380726,1742352632432,-500.0,0.00011369,2]
[356380727,1742352632443,-4166.66,0.0001137,2]
[356380728,1742352632453,-802.15780449,0.00011505,2]
[356380729,1742352632464,-420.0,0.00011798,2]
[356380730,1742352632474,-191.71474746,0.00011881,2]
[356380731,1742352632483,-376.80166486,0.00011881,2]
[356380732,1742352632492,-541.0,0.00011881,2]
[356380733,1742352632502,-261.816,0.00011881,2]
[356380734,1742352632511,-1917.216,0.00011881,2]
[356380735,1742352632521,-2267.0,0.00011881,2]
[356380736,1742352632531,-152.50587112,0.00011893,2]
[356380737,1742352632540,-1000.0,0.00011893,2]
[356380738,1742352632550,-500.0,0.00011898,2]
[356380739,1742352632559,-1000.0,0.00011899,2]
[356380740,1742352632569,-10317.13000991,0.000119,2]
[356380741,1742352632579,-535.18387367,0.00012114,2]
[356380742,1742352632588,-4166.66,0.00012115,2]
[356380743,1742352632598,-1002.94450984,0.00012173,2]
[356380744,1742352632608,-587.0,0.00012968,2]
[356380745,1742352632617,-500.00000008,0.00013,2]
[356380746,1742352632627,-200.0820053,0.00013,3]
[356380747,1742352632637,-521.1162351,0.00013288,2]
[356380748,1742352632646,-466.74371283,0.00013394,2]
[356380749,1742352632656,-500.0,0.00013398,2]
[356380750,1742352632665,-245.30742492,0.00013398,2]
[356380751,1742352632676,-163978.25990527,0.00013399,2]
[356380752,1742352632685,-3000.0,0.00013399,2]
[356380753,1742352632696,-500.0,0.00013496,2]
[356380754,1742352632706,-4166.66,0.00013497,2]
[356380755,1742352632715,-254.17367736,0.00013497,2]
[356380778,1742352638108,-192.3554028,0.00011504,2]
[356380779,1742352638118,-3293.34608617,0.000129,2]
[356380780,1742352638128,-245.82632264,0.00013497,2]
[356380781,1742352638139,-3162.4953307,0.00013498,2]
[356380782,1742352638151,-1004.1646693,0.00013498,2]
[356380783,1742352638160,-4166.66,0.00013498,2]
[356380784,1742352638170,-4166.66,0.00013498,2]
[356380785,1742352638180,-4166.66,0.00013498,2]
[356380786,1742352638190,-500.0,0.00013498,2]
[356380787,1742352638200,-500.0,0.00013498,2]
[356380788,1742352638209,-500.0,0.00013498,2]
[356380789,1742352638219,-500.0,0.00013598,2]
[356380790,1742352638229,-338.664,0.00013599,2]
[356380791,1742352638239,-4166.66,0.00013672,2]
[356380792,1742352638248,-500.44773633,0.00013673,2]
[356380793,1742352638257,-501.18571209,0.00013673,2]
[356380794,1742352638267,-500.0,0.00013673,2]
[356380795,1742352638277,-500.0,0.00013673,2]
[356380796,1742352638287,-500.0,0.00013673,2]
[356380797,1742352638297,-500.0,0.00013673,2]
[356380798,1742352638307,-500.0,0.00013673,2]
[356380799,1742352638318,-500.0,0.00013673,2]
[356380800,1742352638328,-500.0,0.00013673,2]
[356380801,1742352638344,-500.0,0.00013673,2]
[356380802,1742352638354,-500.0,0.00013673,2]
[356380803,1742352638364,-500.0,0.00013673,2]
[356380804,1742352638375,-500.0,0.00013673,2]
[356380805,1742352638384,-500.0,0.00013673,2]
[356380806,1742352638394,-500.0,0.00013673,2]
[356380807,1742352638404,-500.0,0.00013673,2]
[356380808,1742352638414,-500.0,0.00013673,2]
[356380809,1742352638423,-500.0,0.00013673,2]
[356380810,1742352638434,-296.06000667,0.00013673,2]
[356380811,1742352638447,-500.0,0.00013673,2]
[356380812,1742352638456,-500.0,0.00013673,2]
[356380813,1742352638466,-500.0,0.00013673,2]
[356380814,1742352638476,-500.0,0.00013673,2]
[356380815,1742352638485,-4166.66,0.00013696,2]
[356380816,1742352638495,-500.0,0.00013696,2]
[356380817,1742352638505,-4166.66,0.00013697,2]
[356380818,1742352638515,-4166.66,0.00013697,2]
[356380819,1742352638524,-4166.66,0.00013697,2]
[356380820,1742352638535,-500.0,0.00013697,2]
[356380821,1742352638546,-500.0,0.00013697,2]
[356380822,1742352638555,-500.0,0.00013697,2]
[356380823,1742352638565,-4166.66,0.00013698,2]
[356380824,1742352638575,-4166.66,0.00013698,2]
[356380825,1742352638584,-4166.66,0.00013698,2]
[356380826,1742352638595,-4166.66,0.00013698,2]
[356380827,1742352638605,-4166.66,0.00013698,2]
[356380828,1742352638615,-4166.66,0.00013698,2]
[356380829,1742352638626,-4166.66,0.00013698,2]
[356380830,1742352638636,-4166.66,0.00013698,2]
[356380831,1742352638645,-4166.66,0.00013698,2]
[356380832,1742352638655,-4166.66,0.00013698,2]
[356380833,1742352638665,-4166.66,0.00013698,2]
[356380834,1742352638676,-4166.82,0.00013698,2]
[356380835,1742352638686,-500.0,0.00013698,2]
[356380836,1742352638696,-530.79,0.00013698,2]
[356380837,1742352638706,-3000.0,0.00013698,15]
[356380838,1742352638715,-3000.0,0.00013698,15]
[356380839,1742352638725,-3000.0,0.00013698,15]
[356380840,1742352638735,-1914.45107737,0.00013698,15]
[356380841,1742352638745,-1544.878605,0.00013699,2]
[356380842,1742352638754,-212.780451,0.00013699,2]
[356380843,1742352638764,-155.63357,0.00013699,2]
[356380844,1742352638774,-151.0,0.00013699,2]
[356380845,1742352638785,-151.0,0.00013699,2]
[356380846,1742352638795,-153.31913,0.00013699,2]
[356380847,1742352638805,-151.0,0.00013699,2]
[356380848,1742352638995,-151.0,0.00013699,2]
[356380849,1742352639005,-1873.79687695,0.00013699,2]
[356380850,1742352639015,-1873.79687695,0.00013699,2]
[356380851,1742352639025,-1873.79687695,0.00013699,2]
[356380852,1742352639034,-1873.79687695,0.00013699,2]
[356380853,1742352639043,-1873.79687695,0.00013699,2]
[356380854,1742352639053,-1873.79687695,0.00013699,2]
[356380855,1742352639062,-1873.79687695,0.00013699,2]
[356380856,1742352639071,-1873.79687695,0.00013699,2]
[356380857,1742352639080,-1873.79687695,0.00013699,2]
[356380858,1742352639090,-1873.79687695,0.00013699,2]
[356380859,1742352639103,-1873.79687695,0.00013699,2]
[356380860,1742352639112,-1873.79687695,0.00013699,2]
[356380861,1742352639121,-1873.79687695,0.00013699,2]
[356380862,1742352639131,-1873.79687695,0.00013699,2]
[356380863,1742352639142,-1873.79687695,0.00013699,2]
[356380864,1742352639151,-1873.79687695,0.00013699,2]
[356380865,1742352639161,-1873.79687695,0.00013699,2]
[356380866,1742352639171,-1873.79687695,0.00013699,2]
[356380867,1742352639181,-1873.79687695,0.00013699,2]
[356380868,1742352639190,-1873.79687695,0.00013699,2]
[356380869,1742352639200,-1873.79687695,0.00013699,2]
[356380870,1742352639210,-1873.79687695,0.00013699,2]
[356380871,1742352639220,-1873.79687695,0.00013699,2]
[356380872,1742352639229,-1873.79687695,0.00013699,2]
[356380873,1742352639238,-1873.79687695,0.00013699,2]
[356380874,1742352639247,-1873.79687695,0.00013699,2]
[356380875,1742352639254,-1873.79687695,0.00013699,2]
[356380876,1742352639260,-1873.79687695,0.00013699,2]
[356380877,1742352639269,-1873.79687695,0.00013699,2]
[356380878,1742352639278,-1873.79687695,0.00013699,2]
[356380879,1742352639288,-1873.79687695,0.00013699,2]
[356380880,1742352639297,-1873.79687695,0.00013699,2]
[356380881,1742352639307,-1873.79687695,0.00013699,2]
[356380882,1742352639316,-1873.79687695,0.00013699,2]
[356380883,1742352639325,-1873.79687695,0.00013699,2]
[356380884,1742352639335,-1873.79687695,0.00013699,2]
[356380885,1742352639344,-1873.79687695,0.00013699,2]
[356380886,1742352639354,-1873.79687695,0.00013699,2]
[356380887,1742352639363,-1873.79687695,0.00013699,2]
[356380888,1742352639373,-1873.79687695,0.00013699,2]
[356380889,1742352639382,-1873.79687695,0.00013699,2]
[356380890,1742352639391,-1873.79687695,0.00013699,2]
[356380891,1742352639400,-1873.79687695,0.00013699,2]
[356380892,1742352639410,-1873.79687695,0.00013699,2]
[356380893,1742352639420,-1873.79687695,0.00013699,2]
[356380894,1742352639429,-1873.79687695,0.00013699,2]
[356380895,1742352639439,-1873.79687695,0.00013699,2]
[356380896,1742352639448,-1873.79687695,0.00013699,2]
[356380897,1742352639457,-1873.79687695,0.00013699,2]
[356380898,1742352639467,-1873.79687695,0.00013699,2]
[356380899,1742352639477,-1873.79687695,0.00013699,2]
[356380900,1742352639487,-1873.79687695,0.00013699,2]
[356380901,1742352639496,-1873.79687695,0.00013699,2]
[356380902,1742352639506,-1873.79687695,0.00013699,2]
[356380903,1742352639515,-1873.79687695,0.00013699,2]
[356380904,1742352639524,-1873.79687695,0.00013699,2]
[356380905,1742352639534,-1873.79687695,0.00013699,2]
[356380906,1742352639543,-1873.79687695,0.00013699,2]
[356380907,1742352639553,-1873.79687695,0.00013699,2]
[356380908,1742352639562,-1873.79687695,0.00013699,2]
[356380909,1742352639572,-1873.79687695,0.00013699,2]
[356380910,1742352639584,-1873.79687695,0.00013699,2]
[356380911,1742352639593,-1873.79687695,0.00013699,2]
[356380912,1742352639603,-1873.79687695,0.00013699,2]
[356380913,1742352639612,-1873.79687695,0.00013699,2]
[356380914,1742352639622,-1873.79687695,0.00013699,2]
[356380915,1742352639632,-1873.79687695,0.00013699,2]
[356380916,1742352639642,-1873.79687695,0.00013699,2]
[356380917,1742352639652,-114636.20323634,0.000137,2]
[356380918,1742352639666,-43441.97211266,0.000137,2]
[356380919,1742352639675,-1236.96,0.000137,2]
[356380920,1742352639684,-1236.96,0.000137,2]
[356380921,1742352639694,-1236.96,0.000137,2]
[356380922,1742352639703,-1236.96,0.000137,2]
[356380924,1742352639713,-1236.96,0.000137,2]
[356380926,1742352639722,-1236.96,0.000137,2]
[356380927,1742352639732,-1236.96,0.000137,2]
[356380928,1742352639741,-1236.96,0.000137,2]
[356380929,1742352639751,-1236.96,0.000137,2]
[356380930,1742352639760,-1236.96,0.000137,2]
[356380931,1742352639770,-1000.0,0.000138,4]
[356380933,1742352639781,-151.0,0.000138,2]
[356380934,1742352639790,-150.33,0.00013945,2]
[356380935,1742352639799,-183.51052146,0.00013945,2]
[356380936,1742352639808,-500.0,0.00013945,2]
[356380937,1742352639817,-500.0,0.00013945,2]
[356380938,1742352639827,-500.0,0.00013945,2]
[356380939,1742352639837,-500.0,0.00013945,2]
[356380940,1742352639846,-658.0,0.00013945,2]
[356380941,1742352639856,-500.0,0.00013945,2]
[356380943,1742352639866,-500.0,0.00013945,2]
[356380944,1742352639875,-150.33,0.00013945,2]
[356380945,1742352639885,-500.0,0.00013945,2]
[356380946,1742352639895,-7164.5039431,0.0001396,2]
[356380947,1742352639905,-255.47357845,0.00013972,2]
[356380948,1742352639914,-500.0,0.00013972,2]
[356380949,1742352639925,-500.0,0.00013972,2]
[356380950,1742352639934,-500.0,0.00013972,2]
[356380951,1742352639944,-500.0,0.00013972,2]
[356380952,1742352639954,-658.0,0.00013972,2]
[356380953,1742352639964,-500.0,0.00013972,2]
[356380954,1742352639974,-647.58014704,0.00013972,2]
[356380955,1742352639984,-500.0,0.00013972,2]
[356380957,1742352639993,-407.95069737,0.0001399,2]
[356380958,1742352640003,-500.0,0.00014,2]
[356380959,1742352640013,-500.0,0.00014,2]
[356380960,1742352640022,-500.0,0.00014,2]
[356380961,1742352640031,-500.0,0.00014,2]
[356380962,1742352640041,-658.0,0.00014,2]
[356380963,1742352640050,-500.0,0.00014,2]
[356380964,1742352640059,-500.0,0.00014,2]
[356380965,1742352640069,-2407.39417937,0.00014,2]
[356380966,1742352640078,-7263.0,0.00014,2]
[356380967,1742352640088,-660.0,0.00014,4]
[356380968,1742352640099,-727.39559353,0.00014,2]
[356380969,1742352640111,-300.0,0.00014,2]
[356380970,1742352640121,-500.0,0.00014027,2]
[356380971,1742352640130,-500.0,0.00014027,2]
[356380972,1742352640140,-500.0,0.00014027,2]
[356380973,1742352640151,-500.0,0.00014027,2]
[356380974,1742352640161,-658.0,0.00014027,2]
[356380975,1742352640171,-500.0,0.00014027,2]
[356380976,1742352640183,-500.0,0.00014027,2]
[356380977,1742352640192,-5000.0,0.00014046,2]
[356380979,1742352640202,-5000.0,0.00014046,2]
[356380980,1742352640211,-1476.19684019,0.00014046,2]
[356380983,1742352640627,-404.778,0.00011881,2]
[356380985,1742352640636,-3523.80315981,0.00014046,2]
[356380986,1742352640646,-769.42584442,0.00014055,2]
[356380987,1742352640655,-500.0,0.00014055,2]
[356380988,1742352640665,-500.0,0.00014055,2]
[356380989,1742352640675,-500.0,0.00014055,2]
[356380990,1742352640684,-658.0,0.00014055,2]
[356380991,1742352640694,-500.0,0.00014055,2]
[356380992,1742352640703,-500.0,0.00014055,2]
[356380993,1742352640712,-465.08718564,0.00014064,2]
[356380994,1742352640722,-150.0,0.00014082,2]
[356380995,1742352640732,-500.0,0.00014082,2]
[356380996,1742352640742,-500.0,0.00014082,2]
[356380997,1742352640751,-500.0,0.00014082,2]
[356380998,1742352640761,-658.0,0.00014082,2]
[356380999,1742352640770,-500.0,0.00014082,2]
[356381000,1742352640780,-500.0,0.00014082,2]
[356381001,1742352640789,-151.0,0.00014082,2]
[356381002,1742352640799,-770.400128,0.000141,2]
[356381003,1742352640808,-500.0,0.00014109,2]
[356381004,1742352640819,-500.0,0.00014109,2]
[356381005,1742352640828,-500.0,0.00014109,2]
[356381006,1742352640838,-658.0,0.00014109,2]
[356381007,1742352640847,-500.0,0.00014109,2]
[356381008,1742352640857,-500.0,0.00014109,2]
[356381009,1742352640866,-500.0,0.00014137,2]
[356381010,1742352640876,-500.0,0.00014137,2]
[356381011,1742352640886,-500.0,0.00014137,2]
[356381012,1742352640896,-658.0,0.00014137,2]
[356381013,1742352640906,-500.0,0.00014137,2]
[356381014,1742352640916,-500.0,0.00014137,2]
[356381015,1742352640926,-500.0,0.00014164,2]
[356381016,1742352640936,-500.0,0.00014164,2]
[356381017,1742352640945,-612.964954,0.00014164,2]
[356381018,1742352640954,-658.0,0.00014164,2]
[356381019,1742352640964,-500.0,0.00014164,2]
[356381020,1742352640974,-658.03895346,0.00014164,2]
[356381021,1742352640984,-520.32488311,0.00014192,2]
[356381022,1742352640993,-500.0,0.00014192,2]
[356381023,1742352641003,-658.0,0.00014192,2]
[356381024,1742352641013,-500.0,0.00014192,2]
[356381025,1742352641023,-500.0,0.000142,2]
[356381026,1742352641034,-500.0,0.00014219,2]
[356381027,1742352641043,-658.0,0.00014219,2]
[356381028,1742352641053,-502.30969575,0.00014219,2]
[356381029,1742352641063,-500.0,0.00014246,2]
[356381030,1742352641073,-658.0,0.00014246,2]
[356381031,1742352641082,-204.0,0.00014254,2]
[356381032,1742352641092,-500.0,0.00014274,2]
[356381033,1742352641105,-658.0,0.00014274,2]
[356381034,1742352641115,-500.0,0.000143,2]
[356381035,1742352641125,-500.0,0.00014301,2]
[356381036,1742352641135,-658.0,0.00014301,2]
[356381037,1742352641146,-500.0,0.00014329,2]
[356381038,1742352641155,-658.0,0.00014329,2]
[356381039,1742352641165,-500.0,0.00014356,2]
[356381040,1742352641175,-658.0,0.00014356,2]
[356381041,1742352641185,-500.0,0.00014383,2]
[356381042,1742352641194,-658.0,0.00014383,2]
[356381043,1742352641204,-500.0,0.000144,2]
[356381044,1742352641214,-500.0,0.00014411,2]
[356381045,1742352641224,-658.0,0.00014411,2]
[356381046,1742352641234,-500.0,0.00014438,2]
[356381047,1742352641244,-658.0,0.00014438,2]
[356381048,1742352641253,-500.0,0.00014466,2]
[356381049,1742352641264,-660.92527702,0.00014466,2]
[356381050,1742352641273,-500.0,0.00014493,2]
[356381051,1742352641284,-500.0,0.000145,2]
[356381052,1742352641294,-500.0,0.0001452,2]
[356381053,1742352641304,-500.0,0.00014548,2]
[356381054,1742352641313,-500.0,0.00014575,2]
[356381055,1742352641323,-500.0,0.000146,2]
[356381056,1742352641332,-500.0,0.00014603,2]
[356381057,1742352641342,-500.0,0.0001463,2]
[356381058,1742352641352,-500.0,0.00014657,2]
[356381059,1742352641361,-500.0,0.00014685,2]
[356381060,1742352641370,-500.0,0.000147,2]
[356381061,1742352641380,-500.0,0.00014712,2]
[356381062,1742352641389,-500.0,0.0001474,2]
[356381063,1742352641399,-500.0,0.00014767,2]
[356381064,1742352641409,-780.72098519,0.00014794,2]
[356381065,1742352641419,-500.0,0.000148,2]
[356381066,1742352641429,-2202.0950537,0.000148,2]
[356381067,1742352641439,-541.0,0.00014881,2]
[356381068,1742352641449,-150.0,0.00014881,2]
[356381069,1742352641459,-570.53167535,0.000149,2]
[356381070,1742352641468,-500.0,0.000149,2]
[356381071,1742352641477,-500.0,0.00014973,2]
[356381072,1742352641487,-153.42293515,0.00014973,2]
[356381073,1742352641497,-500.0,0.00014973,2]
[356381074,1742352641506,-500.0,0.00014973,2]
[356381075,1742352641517,-500.0,0.00014973,2]
[356381076,1742352641527,-500.0,0.00014973,2]
[356381077,1742352641537,-500.0,0.00014973,2]
[356381078,1742352641547,-500.0,0.00014973,2]
[356381079,1742352641557,-200.11742331,0.00014973,2]
[356381080,1742352641567,-600.06695895,0.00014973,2]
[356381081,1742352641576,-500.0,0.00014973,2]
[356381082,1742352641586,-500.0,0.00014973,2]
[356381083,1742352641595,-500.0,0.00014973,2]
[356381084,1742352641605,-500.0,0.00014973,2]
[356381085,1742352641614,-500.0,0.00014973,2]
[356381086,1742352641623,-500.0,0.00014973,2]
[356381087,1742352641633,-466.08162135,0.00014973,2]
[356381088,1742352641643,-500.0,0.00014973,2]
[356381089,1742352641653,-500.0,0.00014973,2]
[356381090,1742352641663,-16000.0,0.00015,2]
[356381091,1742352641673,-66313.0,0.00015,2]
[356381092,1742352641683,-13863.74042514,0.00015,4]
[356381115,1742352643251,-26190.01109951,0.00015,4]
[356381116,1742352643306,-2401.81924418,0.00015,4]
[356381117,1742352643317,-6302.63075582,0.00015,2]
[356381134,1742353463088,2000.0,0.00014,30]
[356381135,1742353463228,2000.0,0.00014,30]
[356381136,1742353464260,2000.0,0.00014,30]
[356381137,1742353464669,2000.0,0.00014,30]
[356381138,1742353464971,2000.0,0.00014,30]
[356381139,1742353465275,2000.0,0.00014,30]
[356381140,1742353465575,2000.0,0.00014,30]
[356381141,1742353515180,620.97017337,0.00014,30]
[356381142,1742353645116,-201.675733,0.00010959,2]
[356381143,1742353645139,-698.73999278,0.00010998,2]
[356381190,1742353832529,-329.80498334,0.00010998,2]
[356381191,1742353832586,-906.49169148,0.00010998,2]
[356381192,1742353832597,-833.92477148,0.00011259,2]
[356381193,1742353832606,-160.0,0.00011259,2]
[356381194,1742353832616,-417.89091067,0.00011259,2]
[356381195,1742353832625,-160.0,0.00011259,2]
[356381196,1742353832635,-300.0,0.00011273,2]
[356381197,1742353832645,-571.15089487,0.00011399,2]
[356381198,1742353832654,-13253.5773115,0.000114,2]
[356381205,1742353838215,-642.5283192,0.0001126,2]
[356381206,1742353838321,-11816.40988226,0.0001126,2]
[356381207,1742353838331,-23963.69662373,0.000114,2]
[356381208,1742353838341,-500.0,0.00011477,2]
[356381209,1742353838351,-203.98357789,0.00011477,2]
[356381211,1742353838360,-176.04033141,0.00011477,2]
[356381213,1742353838369,-24900.0,0.00011478,2]
[356381214,1742353838380,-150.0,0.000115,2]
[356381215,1742353838389,-150.0,0.00012298,2]
[356381216,1742353838398,-150.048,0.00012298,2]
[356381217,1742353838408,-476.492,0.00012298,2]
[356381218,1742353838417,-15153.21890861,0.00012358,2]
[356381250,1742354395482,2006.3551576,8e-05,2]
[356381252,1742354744140,-198.61230363,0.00010318,2]
[356381253,1742354744162,-1510.80260709,0.00010418,2]
[356381255,1742354805077,-177.10636203,0.00010418,2]
[356381310,1742355038365,-14374.40852938,0.00010418,2]
[356381311,1742355038375,-381.01891894,0.00010554,2]
[356381312,1742355038385,-24900.0,0.00010555,2]
[356381313,1742355038395,-417.89091067,0.00010858,2]
[356381314,1742355038404,-160.0,0.00010858,2]
[356381315,1742355038414,-160.0,0.00010858,2]
[356381316,1742355038423,-12458.93820146,0.00010867,2]
[356381317,1742355038433,-899.87473006,0.00010898,2]
[356381318,1742355038442,-172.864914,0.00010959,2]
[356381319,1742355038452,-150.0,0.00011,2]
[356381320,1742355038462,-202.0,0.00011,2]
[356381321,1742355038471,-405.0,0.00011,2]
[356381322,1742355038481,-809.0,0.00011,2]
[356381323,1742355038490,-1618.0,0.00011,2]
[356381324,1742355038500,-2044.0,0.00011,2]
[356381325,1742355038509,-3150.0,0.00011,2]
[356381326,1742355038518,-3236.0,0.00011,2]
[356381327,1742355038528,-5000.0,0.00011,2]
[356381328,1742355038541,-150.0,0.00011,2]
[356381329,1742355038550,-189.0,0.00011,2]
[356381330,1742355038560,-378.0,0.00011,2]
[356381331,1742355038569,-477.0,0.00011,2]
[356381332,1742355038579,-735.0,0.00011,2]
[356381333,1742355038589,-756.0,0.00011,2]
[356381334,1742355038598,-1168.0,0.00011,2]
[356381335,1742355038608,-500.0,0.00011,2]
[356381336,1742355038618,-473.22823199,0.00011214,2]
[356381337,1742355038628,-833.92477148,0.00011215,2]
[356381338,1742355038637,-8248.57306914,0.000119,2]
[356381339,1742355038650,-1724.652607,0.000119,2]
[356381340,1742355038659,-471.8778448,0.00012053,2]
[356381341,1742355038669,-802.157804,0.000121,2]
[356381342,1742355038679,-500.0,0.00012267,2]
[356381343,1742355038689,-500.0,0.00012267,2]
[356381344,1742355038699,-500.0,0.00012267,2]
[356381345,1742355038708,-500.0,0.00012267,2]
[356381346,1742355038718,-500.0,0.00012267,2]
[356381347,1742355038727,-500.0,0.00012267,2]
[356381348,1742355038738,-500.0,0.00012267,2]
[356381349,1742355038751,-500.0,0.00012267,2]
[356381350,1742355038761,-500.0,0.00012267,2]
[356381351,1742355038770,-500.0,0.00012267,2]
[356381352,1742355038779,-500.0,0.00012267,2]
[356381353,1742355038789,-3000.0,0.000128,2]
[356381354,1742355038799,-188.40083243,0.000129,2]
[356381355,1742355038808,-158936.68787975,0.000129,2]
[356381366,1742355041187,-63063.31212025,0.000129,2]
[356381367,1742355041198,-500.0,0.00012973,2]
[356381368,1742355041207,-500.0,0.00012973,2]
[356381369,1742355041220,-500.0,0.00012973,2]